bitfinex-derivatives/quotes_ETHF0:USTF0_20250410
["timestamp","ask_amount","ask_price","bid_price","bid_amount"]
[1744248684357,2.38215737,1636.7,1636.6,8.84718]
[1744248684760,3.60446737,1636.7,1636.6,8.84718]
[1744248685058,3.60446737,1636.7,1636.6,7.6248]
[1744248685261,3.60446737,1636.7,1636.6,8.84718]
[1744248685457,2.38215737,1636.7,1636.6,8.84718]
[1744248686161,3.60446737,1636.7,1636.6,8.84718]
[1744248687061,3.60446737,1636.7,1636.6,7.6248]
[1744248687357,3.60446737,1636.7,1636.6,8.84718]
[1744248688258,3.60446737,1636.7,1636.6,7.6248]
[1744248688659,3.60446737,1636.7,1636.6,8.84718]
[1744248689061,3.60446737,1636.7,1636.6,7.6248]
[1744248690856,3.60446737,1636.7,1636.6,8.84718]
[1744248691557,2.38215737,1636.7,1636.6,8.84718]
[1744248691757,3.60446737,1636.7,1636.6,9.00328]
[1744248692869,3.60446737,1636.7,1636.6,9.61448]
[1744248693266,2.38215737,1636.7,1636.6,9.00328]
[1744248693461,3.60446737,1636.7,1636.6,9.61448]
[1744248694065,3.60446737,1636.7,1636.6,8.236]
[1744248694363,3.60446737,1636.7,1636.6,4.417]
[1744248695357,1.22238,1636.6,1636.5,46.80514272]
[1744248695674,3.62288,1636.6,1636.5,2.72e-06]
[1744248695867,17.68562159,1636.6,1636.5,2.72e-06]
[1744248696074,22.10262159,1636.6,1636.5,2.72e-06]
[1744248696571,22.59984437,1636.6,1636.5,2.72e-06]
[1744248697067,22.59984437,1636.6,1636.1,6.83232886]
[1744248697068,1.22268,1636.2,1636.1,6.83232886]
[1744248697268,4.43048,1636.2,1636.1,8.86e-06]
[1744248697472,9.45143737,1636.2,1636.1,8.86e-06]
[1744248698464,15.28542159,1636.2,1636.0,14.26022917]
[1744248698778,1.22276,1636.1,1636.0,8.04e-06]
[1744248699067,1.24371737,1636.1,1636.0,8.04e-06]
[1744248700471,1.24371737,1636.1,1636.0,3.20780804]
[1744248701173,1.24371737,1636.1,1636.0,8.04e-06]
[1744248701569,3.61951737,1636.1,1636.0,8.04e-06]
[1744248702072,14.45350159,1636.1,1636.0,8.04e-06]
[1744248703281,9.45350159,1636.1,1636.0,8.04e-06]
[1744248703977,14.45350159,1636.1,1636.0,8.04e-06]
[1744248704173,18.87150159,1636.1,1636.0,8.04e-06]
[1744248707377,9.45350159,1636.1,1636.0,8.04e-06]
[1744248709676,12.66130159,1636.1,1636.0,8.04e-06]
[1744248710381,17.66130159,1636.1,1636.0,8.04e-06]
[1744248711069,12.66130159,1636.1,1636.0,8.04e-06]
[1744248711368,17.07930159,1636.1,1636.0,8.04e-06]
[1744248714081,22.07930159,1636.1,1636.0,8.04e-06]
[1744248717484,17.07930159,1636.1,1636.0,8.04e-06]
[1744248718786,9.45350159,1636.1,1636.0,8.04e-06]
[1744248719084,9.45350159,1636.1,1636.0,3.61593804]
[1744248719779,9.45350159,1636.1,1636.0,2.39310804]
[1744248720084,3.61951737,1636.1,1636.0,8.04e-06]
[1744248721986,6.82731737,1636.1,1636.0,8.04e-06]
[1744248722688,12.66130159,1636.1,1636.0,8.04e-06]
[1744248722875,22.07930159,1636.1,1636.0,8.04e-06]
[1744248725991,17.07930159,1636.1,1636.0,8.04e-06]
[1744248727286,12.66130159,1636.1,1636.0,8.04e-06]
[1744248727587,9.45350159,1636.1,1636.0,8.04e-06]
[1744248727891,3.61951737,1636.1,1636.0,1.22283804]
[1744248728592,0.02095737,1636.1,1636.0,8.73923804]
[1744248728787,0.02095737,1636.1,1636.0,3.73923804]
[1744248729182,0.02095737,1636.1,1636.0,8.73923804]
[1744248729482,0.00914272,1636.3,1636.2,1.22268]
[1744248729690,0.00914272,1636.3,1636.2,13.84948]
[1744248730093,0.00914272,1636.3,1636.2,16.27828]
[1744248730489,1.22276,1636.1,1636.0,1.22278804]
[1744248730785,1.22276,1636.1,1636.0,6.85938804]
[1744248730990,1.22276,1636.1,1636.0,5.63660804]
[1744248731189,3.70356,1636.1,1636.0,5.63660804]
[1744248731592,3.70356,1636.1,1636.0,6.85943804]
[1744248731979,3.70356,1636.1,1636.0,3.20780804]
[1744248732184,6.23266,1636.1,1636.0,8.04e-06]
[1744248732585,3.70356,1636.1,1636.0,8.04e-06]
[1744248733088,6.91136,1636.1,1636.0,8.04e-06]
[1744248733990,3.70356,1636.1,1636.0,8.04e-06]
[1744248734991,3.70356,1636.1,1636.0,2.40750804]
[1744248736297,3.70356,1636.1,1636.0,8.04e-06]
[1744248739888,3.70356,1636.1,1636.0,4.72890804]
[1744248741198,3.70356,1636.1,1636.0,5.95173804]
[1744248741996,3.70356,1636.1,1636.0,4.72890804]
[1744248742291,3.70356,1636.1,1636.0,8.04e-06]
[1744248742592,12.74534422,1636.1,1636.0,8.04e-06]
[1744248744095,17.74534422,1636.1,1636.0,8.04e-06]
[1744248746195,12.74534422,1636.1,1636.0,8.04e-06]
[1744248746890,17.74534422,1636.1,1636.0,8.04e-06]
[1744248747798,28.14916955,1636.1,1636.0,8.04e-06]
[1744248749200,23.14916955,1636.1,1636.0,8.04e-06]
[1744248749887,28.14916955,1636.1,1636.0,8.04e-06]
[1744248750396,28.65475132,1636.1,1636.0,8.04e-06]
[1744248750797,28.14916955,1636.1,1636.0,8.04e-06]
[1744248751895,13.66274695,1636.1,1636.0,8.04e-06]
[1744248753897,7.82876273,1636.1,1636.0,8.04e-06]
[1744248755499,12.82876273,1636.1,1636.0,8.04e-06]
[1744248756595,12.82876273,1636.1,1635.1,3.05874]
[1744248756596,1.2235,1635.1,1635.0,19.03945073]
[1744248756791,1.2235,1635.1,1635.0,14.10005073]
[1744248756792,8.8493,1635.1,1635.0,14.10005073]
[1744248756991,15.68469,1635.1,1634.5,28.21407203]
[1744248757294,3.05989,1634.5,1633.5,87.41711964]
[1744248757487,10.68602,1634.4,1633.9,1.22439]
[1744248757698,0.00917095,1634.2,1634.1,1.22423]
[1744248758009,0.00917095,1634.2,1634.1,37.30437121]
[1744248758202,1.23335095,1634.2,1634.1,47.19692121]
[1744248758502,0.00917095,1634.2,1634.1,51.62897121]
[1744248758704,1.22404,1634.4,1634.2,1.22417]
[1744248758903,1.22404,1634.4,1634.3,2.5685]
[1744248759202,1.22404,1634.4,1634.3,8.6853]
[1744248759596,3.2078,1634.7,1634.3,13.6853]
[1744248759905,1.23312095,1634.5,1634.4,8.4897]
[1744248760409,1.23312095,1634.5,1634.4,2.3729]
[1744248760592,1.23312095,1634.5,1634.4,8.4897]
[1744248760798,0.00917095,1634.5,1634.4,8.4897]
[1744248761197,1.23312095,1634.5,1634.4,8.4897]
[1744248761397,0.00917095,1634.5,1634.4,8.4897]
[1744248761689,0.00917095,1634.5,1634.4,13.4897]
[1744248761690,1.23312095,1634.5,1634.4,13.4897]
[1744248761896,1.23312095,1634.5,1634.4,10.9035]
[1744248763697,1.23312095,1634.5,1634.4,4.7867]
[1744248764196,1.23312095,1634.5,1634.4,2.3729]
[1744248765710,1.23312095,1634.5,1634.4,8.4897]
[1744248765900,0.00917095,1634.5,1634.4,17.21693]
[1744248766099,1.23312095,1634.5,1634.4,10.9929]
[1744248766299,0.00917095,1634.5,1634.4,17.21693]
[1744248766494,1.23312095,1634.5,1634.4,15.9929]
[1744248766707,1.23312095,1634.5,1634.4,10.9929]
[1744248767206,4.44092095,1634.5,1634.4,10.9929]
[1744248767596,4.44092095,1634.5,1634.4,2.3729]
[1744248768002,6.90692095,1634.5,1634.4,2.3729]
[1744248768708,1.22418,1634.2,1634.1,2.5032]
[1744248769109,1.22418,1634.2,1634.1,8.62]
[1744248769303,1.22416,1634.3,1634.2,1.22418]
[1744248769504,0.00917095,1634.5,1634.2,9.3246]
[1744248769704,1.22409,1634.4,1634.3,6.1168]
[1744248770198,1.22409,1634.4,1634.3,11.1168]
[1744248770399,1.2244,1633.9,1633.8,2.4313]
[1744248770606,1.2244,1633.9,1633.8,2.46199003]
[1744248770803,4.4322,1633.9,1633.8,0.03069003]
[1744248771003,4.4322,1633.9,1633.4,4.43253]
[1744248771004,1.22463,1633.6,1633.5,2.4313]
[1744248771206,4.43243,1633.6,1633.5,4.70542]
[1744248771404,1.225,1633.1,1633.0,4.43286]
[1744248771599,1.225,1633.1,1633.0,3.2078]
[1744248771804,1.225,1633.1,1633.0,12.91322]
[1744248772004,1.225,1633.1,1633.0,7.91322]
[1744248772211,1.225,1633.1,1633.0,12.91322]
[1744248772409,1.225,1633.1,1633.0,7.91322]
[1744248772712,1.22515,1632.9,1632.8,8.1353]
[1744248772905,1.22538,1632.6,1632.5,0.10996607]
[1744248773105,8.91418,1632.6,1632.5,0.10996607]
[1744248773305,8.92157745,1632.6,1632.5,6.07e-06]
[1744248773610,9.44057745,1632.6,1632.5,6.07e-06]
[1744248773809,8.92257745,1632.6,1632.5,6.07e-06]
[1744248774009,3.06378,1632.5,1631.8,3.2078]
[1744248774206,3.2078,1632.0,1631.8,4.70542]
[1744248774411,0.00739745,1631.9,1631.5,5.5196]
[1744248774604,6.27309,1631.7,1631.1,3.2078]
[1744248774810,1.22641,1631.3,1631.1,45.50542]
[1744248775009,1.22628,1631.4,1631.3,4.69802255]
[1744248775314,1.22587,1632.0,1631.6,1.22608]
[1744248775513,0.00917095,1632.1,1631.6,3.2078]
[1744248775709,1.22611,1631.7,1631.6,4.69802255]
[1744248775910,4.709,1631.8,1631.2,2.449]
[1744248776105,4.709,1631.8,1630.9,93.78966859]
[1744248776106,1.22628,1631.4,1631.3,4.69802255]
[1744248776305,1.22658,1631.0,1630.9,4.69802255]
[1744248776607,1.2265,1631.1,1631.0,4.69802255]
[1744248776811,0.00917095,1631.1,1630.9,4.69802255]
[1744248777109,1.22617,1631.6,1631.2,1.2264]
[1744248777312,3.2078,1632.1,1631.8,1.22594]
[1744248777515,1.2257,1632.2,1631.9,4.69802255]
[1744248777711,10.4381,1632.5,1631.8,12.9188]
[1744248777914,1.2257,1632.2,1631.9,4.69802255]
[1744248778216,1.22575,1632.1,1632.0,0.00917095]
[1744248778403,4.44258095,1632.3,1632.0,4.7071935]
[1744248778607,0.00917095,1632.3,1632.1,4.69802255]
[1744248778807,1.23480095,1632.3,1632.1,4.69802255]
[1744248779012,3.21697095,1632.3,1632.2,4.69802255]
[1744248779312,0.00917095,1632.3,1632.1,4.69802255]
[1744248779513,0.00917095,1632.3,1632.1,5.92373255]
[1744248779708,0.00917095,1632.3,1632.2,4.69802255]
[1744248780012,11.52613364,1632.4,1632.2,4.69802255]
[1744248780013,7.09279364,1632.4,1632.3,1.2256]
[1744248780213,7.09279364,1632.4,1632.3,5.92362255]
[1744248780411,3.37689364,1632.4,1632.3,10.92362255]
[1744248780608,9.45705819,1632.6,1632.3,10.92362255]
[1744248780609,4.75903564,1632.6,1632.5,1.22545]
[1744248780808,11.85750528,1632.9,1632.7,1.22527]
[1744248781110,13.08267528,1632.9,1632.6,4.43312]
[1744248781414,11.85750528,1632.9,1632.6,3.2078]
[1744248781715,11.85750528,1632.9,1632.7,1.22528]
[1744248781911,13.08266528,1632.9,1632.7,3.57118]
[1744248782211,13.08266528,1632.9,1632.7,8.57118]
[1744248782412,13.08266528,1632.9,1632.7,2.3459]
[1744248782619,1.22523,1632.8,1632.7,2.3459]
[1744248782804,1.22538,1632.6,1632.5,4.712]
[1744248783005,3.2078,1632.6,1632.2,3.2078]
[1744248783217,3.2078,1632.7,1632.2,3.2078]
[1744248783412,11.85750528,1632.9,1632.4,6.27159]
[1744248783714,0.00917095,1633.0,1632.6,3.2078]
[1744248783905,0.00917095,1633.0,1632.7,2.3459]
[1744248784111,0.00917095,1633.0,1632.9,1.22515]
[1744248784307,0.00917095,1633.0,1632.9,1.23254745]
[1744248784611,0.00917095,1633.0,1632.9,8.59844745]
[1744248784916,1.23425095,1633.0,1632.9,2.37329745]
[1744248786719,1.23425095,1633.0,1632.9,0.00739745]
[1744248786914,4.44205095,1633.0,1632.9,0.00739745]
[1744248787121,1.23425095,1633.0,1632.9,0.00739745]
[1744248787320,14.15405095,1633.0,1632.9,7.45e-06]
[1744248787521,10.94625095,1633.0,1632.9,7.45e-06]
[1744248787818,1.22538,1632.6,1632.5,2.5015]
[1744248788027,1.23277,1632.6,1632.5,2.5015]
[1744248789020,0.00739,1632.6,1632.4,1.22549]
[1744248789214,0.00739,1632.6,1632.5,8.28355]
[1744248789215,1.23277,1632.6,1632.5,8.28355]
[1744248789520,1.23277,1632.6,1632.5,2.3451]
[1744248789719,0.00739,1632.6,1632.5,8.57055]
[1744248790421,0.00739,1632.6,1632.5,13.28355]
[1744248791218,1.23277,1632.6,1632.5,7.0581]
[1744248791421,1.23277,1632.6,1632.5,2.3451]
[1744248792320,3.59237,1632.6,1632.5,2.3451]
[1744248792520,0.00739,1632.6,1632.5,8.57055]
[1744248792829,1.23277,1632.6,1632.5,2.3451]
[1744248793023,1.23277,1632.6,1632.5,3.57055]
[1744248793524,0.00739,1632.6,1632.5,8.57055]
[1744248793718,0.00739,1632.6,1632.5,13.28355]
[1744248794319,0.00739,1632.6,1632.5,8.28355]
[1744248794819,0.00739,1632.6,1632.5,13.28355]
[1744248795220,1.23277,1632.6,1632.5,8.28355]
[1744248795535,1.23277,1632.6,1632.5,2.3451]
[1744248795714,1.23277,1632.6,1632.3,3.52316]
[1744248795715,1.22553,1632.4,1632.3,2.2976]
[1744248795915,1.23292,1632.4,1632.3,4.67]
[1744248796124,1.23292,1632.4,1632.3,9.1034]
[1744248796927,1.23292,1632.4,1632.3,7.8778]
[1744248797130,1.23292,1632.4,1632.3,9.1034]
[1744248797326,1.23292,1632.4,1632.3,6.8058]
[1744248798128,0.00739,1632.4,1632.3,5.5802]
[1744248800632,0.00739,1632.4,1632.3,2.3724]
[1744248801128,1.23292,1632.4,1632.3,2.3724]
[1744248801321,1.23292,1632.4,1632.3,3.598]
[1744248801929,1.23292,1632.4,1632.3,2.3724]
[1744248802126,1.23292,1632.4,1632.3,6.8058]
[1744248802319,1.2256,1632.3,1632.2,40.8]
[1744248802526,1.23299,1632.3,1632.2,43.0839]
[1744248802929,0.00739,1632.3,1632.0,7.14257095]
[1744248803127,1.22575,1632.1,1632.0,4.77657095]
[1744248803426,0.00739,1632.2,1632.0,46.80232095]
[1744248803732,1.23314,1632.1,1632.0,50.29057095]
[1744248803921,1.23314,1632.1,1632.0,54.72420095]
[1744248804525,1.23314,1632.1,1632.0,53.49837095]
[1744248804726,1.23314,1632.1,1632.0,47.87017095]
[1744248805535,0.00739,1632.1,1632.0,49.09600095]
[1744248805735,1.23314,1632.1,1632.0,52.30380095]
[1744248805932,0.00739,1632.1,1632.0,57.30380095]
[1744248806225,2.5005,1632.7,1632.0,56.07797095]
[1744248806426,2.5005,1632.7,1632.4,3.2078]
[1744248806625,2.5005,1632.7,1632.5,2.4621]
[1744248807127,1.22538,1632.6,1632.5,2.4621]
[1744248807431,1.22553,1632.4,1632.3,9.35335]
[1744248807633,1.22553,1632.4,1632.3,4.92]
[1744248807836,1.22553,1632.4,1632.3,6.1456]
[1744248808335,3.56271,1632.5,1632.4,1.22553]
[1744248808536,3.56271,1632.5,1632.4,3.68763]
[1744248809038,2.3372,1632.5,1632.4,3.68763]
[1744248809237,3.56265,1632.5,1632.4,3.68763]
[1744248810035,9.06923216,1632.8,1632.7,1.2253]
[1744248810340,1.22538,1632.6,1632.5,3.2078]
[1744248810526,1.22538,1632.6,1632.5,4.43325]
[1744248811041,2.4644,1632.7,1632.5,3.2078]
[1744248811239,2.4644,1632.7,1632.6,2.5116]
[1744248811643,4.63615216,1632.8,1632.6,2.5116]
[1744248812140,4.63615216,1632.8,1632.7,3.2078]
[1744248812338,4.63615216,1632.8,1632.7,5.8191]
[1744248812642,4.63615216,1632.8,1632.7,8.203]
[1744248812939,4.63615216,1632.8,1632.7,3.2078]
[1744248813140,1.22523,1632.8,1632.7,4.43303]
[1744248813342,1.22523,1632.8,1632.7,6.81693]
[1744248813544,3.72543,1632.9,1632.8,1.22523]
[1744248813842,1.23428095,1633.0,1632.9,1.22515]
[1744248814047,1.23428095,1633.0,1632.9,0.00739745]
[1744248814244,3.73448095,1633.0,1632.9,0.00739745]
[1744248814945,3.73448095,1633.0,1632.9,1.23254745]
[1744248815140,3.73448095,1633.0,1632.9,0.00739745]
[1744248815538,3.73448095,1633.0,1632.9,1.23254745]
[1744248816341,0.00917095,1633.0,1632.9,1.23254745]
[1744248816543,0.00917095,1633.0,1632.9,6.15254745]
[1744248817142,1.23425095,1633.0,1632.9,6.15254745]
[1744248817442,2.59407095,1633.0,1632.9,6.15254745]
[1744248817643,3.81915095,1633.0,1632.9,6.15254745]
[1744248820342,3.81915095,1633.0,1632.9,0.00739745]
[1744248820741,3.06324,1632.8,1632.4,3.71188]
[1744248820947,1.22545,1632.5,1632.4,1.22548]
[1744248821246,1.22545,1632.5,1632.4,4.43328]
[1744248821545,1.22545,1632.5,1632.3,2.3865]
[1744248821546,13.80169745,1632.5,1632.0,44.01697095]
[1744248821742,5.48105,1632.4,1632.0,4.44276095]
[1744248821950,1.23313745,1632.2,1632.0,3.21697095]
[1744248822145,2.5228,1632.1,1632.0,4.44280095]
[1744248822645,2.53019745,1632.1,1632.0,4.44280095]
[1744248822842,3.75594745,1632.1,1632.0,3.21697095]
[1744248823246,3.75594745,1632.1,1632.0,4.44280095]
[1744248823746,2.53019745,1632.1,1632.0,0.00917095]
[1744248824050,3.75594745,1632.1,1632.0,0.00917095]
[1744248826349,3.75594745,1632.1,1632.0,1.23500095]
[1744248826549,3.75594745,1632.1,1632.0,0.00917095]
[1744248827146,3.75594745,1632.1,1632.0,1.23500095]
[1744248827348,3.75594745,1632.1,1632.0,0.00917095]
[1744248828143,8.39209961,1632.1,1632.0,0.00917095]
[1744248828843,8.39209961,1632.1,1632.0,1.23500095]
[1744248829246,4.64354961,1632.1,1632.0,1.23500095]
[1744248829449,4.64354961,1632.1,1632.0,9.44280095]
[1744248829450,3.39242961,1632.1,1632.0,9.44280095]
[1744248829651,9.40738171,1632.5,1632.4,1.22553]
[1744248829853,9.40738171,1632.5,1632.4,9.35433]
[1744248830055,9.40738171,1632.5,1632.4,14.35433]
[1744248830846,9.40738171,1632.5,1632.4,3.2078]
[1744248831050,9.40738171,1632.5,1632.3,2.5407]
[1744248831251,9.40738171,1632.5,1632.4,4.43333]
[1744248831550,9.40738171,1632.5,1632.4,9.35433]
[1744248831752,9.40738171,1632.5,1632.4,14.35433]
[1744248831946,9.40738171,1632.5,1632.4,16.87753]
[1744248832247,2.5292,1632.9,1632.7,1.2253]
[1744248832248,1.22527,1632.8,1632.7,1.2253]
[1744248832451,11.93658171,1632.9,1632.6,3.2078]
[1744248832749,1.2253,1632.7,1632.6,4.43312]
[1744248832945,1.2253,1632.7,1632.6,3.2078]
[1744248833150,1.22545,1632.5,1632.4,4.921]
[1744248835161,1.22553,1632.4,1632.3,2.5232]
[1744248835351,1.22568,1632.2,1632.1,3.70209]
[1744248835758,1.22568,1632.2,1632.1,2.4764]
[1744248836056,1.22575,1632.1,1632.0,8.13697095]
[1744248836252,3.70605,1632.1,1632.0,0.00917095]
[1744248837049,3.70605,1632.1,1632.0,9.5e-07]
[1744248837449,8.70605,1632.1,1632.0,9.5e-07]
[1744248838455,1.2262,1631.5,1631.4,7.62111695]
[1744248838651,14.245,1631.5,1631.4,0.10826819]
[1744248838856,1.22635,1631.3,1631.2,17.71364286]
[1744248839354,9.43415,1631.3,1631.2,15.94441286]
[1744248839561,9.43415,1631.3,1631.2,11.86586286]
[1744248839959,9.43415,1631.3,1631.2,7.16090286]
[1744248840356,6.22635,1631.3,1631.2,7.16090286]
[1744248840656,1.22635,1631.3,1631.2,7.16090286]
[1744248840854,4.43415,1631.3,1631.2,7.16090286]
[1744248841465,1.22635,1631.3,1631.2,7.16090286]
[1744248841658,1.22635,1631.3,1631.2,9.66240286]
[1744248841859,1.22635,1631.3,1631.2,7.16090286]
[1744248842359,1.22643,1631.2,1631.1,5.71847095]
[1744248842563,1.22643,1631.2,1631.1,3.21697095]
[1744248842865,1.22643,1631.2,1631.1,8.21697095]
[1744248843261,1.22641,1631.3,1631.1,8.21697095]
[1744248843461,7.1071406,1631.4,1631.3,1.22635]
[1744248843663,7.1071406,1631.4,1631.3,9.24715]
[1744248843963,8.3334206,1631.4,1631.3,8.0208]
[1744248844157,8.3334206,1631.4,1631.3,4.813]
[1744248846256,8.3334206,1631.4,1631.3,9.24715]
[1744248846966,1.23545095,1631.4,1631.3,9.24715]
[1744248847167,1.23545095,1631.4,1631.3,8.0208]
[1744248847574,0.00917095,1631.4,1631.3,11.03935]
[1744248847869,0.00917095,1631.4,1631.3,14.24715]
[1744248848762,1.23545095,1631.4,1631.3,8.0208]
[1744248848954,1.23545095,1631.4,1631.3,4.813]
[1744248849869,1.22643,1631.2,1631.1,0.00917095]
[1744248850367,4.43423,1631.2,1631.1,0.00917095]
[1744248850564,9.43423,1631.2,1631.1,0.00917095]
[1744248850763,9.43423,1631.2,1631.1,9.5e-07]
[1744248851261,3.78263,1631.2,1631.1,9.5e-07]
[1744248851967,1.22643,1631.2,1631.1,1.22650095]
[1744248852173,1.22643,1631.2,1631.1,9.5e-07]
[1744248854075,1.22643,1631.2,1631.1,2.53340095]
[1744248855162,1.22643,1631.2,1631.1,3.75990095]
[1744248855365,1.2264,1631.3,1631.2,1.22637]
[1744248855670,1.23545095,1631.4,1631.3,1.22635]
[1744248855875,1.23545095,1631.4,1631.3,9.24815]
[1744248856074,1.23545095,1631.4,1631.3,50.04815]
[1744248856265,1.23545095,1631.4,1631.3,4.814]
[1744248856867,1.23545095,1631.4,1631.3,6.04035]
[1744248857166,0.00917095,1631.4,1631.3,14.24815]
[1744248857569,1.23545095,1631.4,1631.3,14.24815]
[1744248857764,0.00917095,1631.4,1631.3,14.24815]
[1744248858477,1.23545095,1631.4,1631.3,9.24815]
[1744248858678,1.23545095,1631.4,1631.3,6.04035]
[1744248858873,1.22643,1631.2,1631.1,9.5e-07]
[1744248859169,0.00917095,1631.4,1631.1,9.5e-07]
[1744248859376,1.22637,1631.3,1631.2,1.22643]
[1744248859577,1.23550095,1631.4,1631.3,1.22635]
[1744248860571,3.69930095,1631.4,1631.3,1.22635]
[1744248860773,1.23550095,1631.4,1631.3,1.22635]
[1744248860972,0.00917095,1631.4,1631.3,1.22635]
[1744248861171,1.23545095,1631.4,1631.3,1.22635]
[1744248861371,3.74465095,1631.4,1631.3,1.22635]
[1744248861877,0.00917095,1631.4,1631.3,1.22635]
[1744248862066,1.23545095,1631.4,1631.3,1.22635]
[1744248862976,0.00917095,1631.4,1631.3,9.43415]
[1744248863575,12.93196965,1632.1,1631.3,14.2038]
[1744248863882,1.22594,1631.9,1631.8,1.22593]
[1744248864081,2.4108,1632.0,1631.8,45.614]
[1744248864575,1.2259,1631.9,1631.8,46.83993]
[1744248864783,1.2259,1631.9,1631.8,46.83996]
[1744248864972,3.6367,1632.0,1631.9,1.2259]
[1744248865373,3.63668,1632.0,1631.9,1.2259]
[1744248866181,1.22643,1631.2,1630.8,3.8214]
[1744248866382,1.22643,1631.2,1630.9,1.22661]
[1744248866878,4.43423,1631.2,1630.9,1.22661]
[1744248867382,6.78773,1631.2,1630.9,1.22661]
[1744248867880,6.78773,1631.2,1630.8,1.22667]
[1744248868081,11.78773,1631.2,1630.7,11.75907]
[1744248868987,11.78773,1631.2,1630.7,6.96907]
[1744248869173,11.78773,1631.2,1630.5,8.6114]
[1744248869489,17.62173,1631.2,1630.3,3.2078]
[1744248869694,1.22718,1630.2,1630.1,3.2078]
[1744248869989,1.22705,1630.4,1629.8,6.27645]
[1744248870285,1.22705,1630.4,1629.7,4.9003]
[1744248870286,2.2494,1630.3,1630.0,26.75857635]
[1744248870682,2.2932,1630.7,1630.2,3.2078]
[1744248870887,0.00919907,1630.3,1630.2,4.43498]
[1744248871085,0.00919907,1630.3,1630.2,3.2078]
[1744248871386,0.00919907,1630.3,1630.2,1.22718]
[1744248871585,0.00919907,1630.3,1630.0,3.21699907]
[1744248871779,1.23631907,1630.3,1630.1,1.22723]
[1744248871980,2.2494,1630.2,1630.1,1.22723]
[1744248872288,0.00919907,1630.3,1630.2,1.22718]
[1744248872488,0.00919907,1630.3,1630.2,9.22598]
[1744248872688,0.00919907,1630.3,1630.2,14.22598]
[1744248873389,0.00919907,1630.3,1630.2,14.83958]
[1744248873789,0.00919907,1630.3,1630.2,17.10578]
[1744248874181,0.00919907,1630.3,1630.2,57.90578]
[1744248874383,9.07e-06,1630.3,1630.2,63.90178]
[1744248877790,7.09796965,1631.0,1630.9,1.22666]
[1744248878586,3.56463,1631.1,1631.0,1.22658]
[1744248878887,2.3381,1631.0,1630.9,1.22666]
[1744248879095,3.56468,1631.0,1630.9,1.23585907]
[1744248879692,8.56468,1631.0,1630.9,0.00919907]
[1744248880293,8.56468,1631.0,1630.9,1.23585907]
[1744248880590,8.56468,1631.0,1630.9,0.00919907]
[1744248880784,2.3381,1631.0,1630.9,1.23585907]
[1744248882602,2.3381,1631.0,1630.9,3.57175907]
[1744248882785,0.00919907,1631.2,1631.1,1.2265]
[1744248883385,1.23562907,1631.2,1631.1,1.2265]
[1744248883581,0.00919907,1631.2,1631.0,1.22652]
[1744248883891,1.23564907,1631.2,1631.1,1.2265]
[1744248884490,0.00919907,1631.2,1631.1,1.2265]
[1744248885191,2.27049907,1631.2,1631.1,9.2263]
[1744248885390,2.27049907,1631.2,1631.1,6.0185]
[1744248885586,2.27049907,1631.2,1631.1,9.2263]
[1744248885797,0.00919907,1631.2,1631.1,15.2223]
[1744248886191,1.23562907,1631.2,1631.1,5.996]
[1744248886584,1.23562907,1631.2,1631.1,46.796]
[1744248886787,1.23562907,1631.2,1631.1,48.0225]
[1744248886788,3.62722907,1631.2,1631.1,48.0225]
[1744248886982,0.00919907,1631.2,1631.1,48.0225]
[1744248887195,1.23562907,1631.2,1631.1,48.0225]
[1744248887395,0.00919907,1631.2,1631.1,51.2303]
[1744248887587,3.62722907,1631.2,1631.1,48.0225]
[1744248887788,1.22658,1631.0,1630.9,5.05720907]
[1744248887988,1.22658,1631.0,1630.9,4.44360907]
[1744248888189,1.22658,1631.0,1630.9,1.23580907]
[1744248889797,1.22658,1631.0,1630.9,0.00919907]
[1744248889993,14.0418,1631.0,1630.0,22.32685028]
[1744248890192,1.22726,1630.1,1630.0,19.11905028]
[1744248890393,4.43506,1630.1,1630.0,19.11905028]
[1744248890591,4.584,1630.2,1630.1,1.22726]
[1744248890792,1.22726,1630.1,1630.0,20.34634028]
[1744248890988,0.00919907,1630.3,1630.0,19.11905028]
[1744248891187,0.00919907,1630.3,1630.2,1.22711]
[1744248891387,1.23635907,1630.3,1630.1,3.5159]
[1744248891692,1.3107391,1630.2,1630.1,3.5159]
[1744248891900,1.22726,1630.1,1630.0,23.91105028]
[1744248892091,1.22726,1630.1,1630.0,19.11905028]
[1744248892699,4.43506,1630.1,1630.0,19.11905028]
[1744248892896,4.5186191,1630.1,1630.0,19.11905028]
[1744248893199,1.3108191,1630.1,1630.0,19.11905028]
[1744248893702,1.3108191,1630.1,1630.0,20.34638028]
[1744248893996,1.3108191,1630.1,1629.9,4.44434907]
[1744248894296,2.3714,1630.0,1629.9,4.44434907]
[1744248894799,0.0835591,1630.0,1629.9,8.00999907]
[1744248895001,0.0835591,1630.0,1629.9,10.38969907]
[1744248895299,0.0835591,1630.0,1629.9,11.61710907]
[1744248895800,0.0835591,1630.0,1629.9,6.82410907]
[1744248895996,0.0835591,1630.0,1629.9,0.00919907]
[1744248895997,4.5186891,1630.0,1629.9,0.00919907]
[1744248896193,1.22756,1629.7,1629.3,5.6136]
[1744248896498,1.22778,1629.4,1629.3,6.22781]
[1744248896693,1.22776,1629.5,1629.3,5.0]
[1744248896890,3.52116,1629.5,1629.3,8.2078]
[1744248897091,3.52116,1629.5,1629.3,9.43559]
[1744248897386,1.22778,1629.4,1629.3,5.0]
[1744248897591,4.01988,1629.4,1629.3,5.0]
[1744248897897,9.01988,1629.4,1629.3,5.0]
[1744248898096,4.01988,1629.4,1629.3,5.0]
[1744248898501,7.22768,1629.4,1629.3,5.0]
[1744248898997,4.01988,1629.4,1629.3,5.0]
[1744248899206,7.22768,1629.4,1629.3,5.0]
[1744248899389,19.4859,1629.4,1628.8,3.2078]
[1744248899594,1.2279,1629.3,1629.0,3.2078]
[1744248899797,1.23709907,1629.3,1629.1,3.77216]
[1744248899995,0.00919907,1629.3,1629.2,1.22794]
[1744248900196,0.00919907,1629.3,1629.2,6.97994]
[1744248900402,1.23705907,1629.3,1629.2,6.97994]
[1744248900704,0.00919907,1629.3,1629.2,6.97994]
[1744248901196,0.00919907,1629.3,1629.2,3.77214]
[1744248901592,0.00919907,1629.3,1629.2,8.77214]
[1744248901902,0.00919907,1629.3,1629.2,14.76814]
[1744248902506,2.5458,1629.9,1629.8,1.22748]